bitfinex/quotes_SOLUSD_20250206
["timestamp","ask_amount","ask_price","bid_price","bid_amount"]
[1738820482844,0.99991323,202.5,202.48,0.063]
[1738820483145,10.37111782,202.5,202.48,0.063]
[1738820483444,9.37120459,202.49,202.48,0.063]
[1738820485785,0.99991323,202.44,202.43,0.063]
[1738820485945,10.37111782,202.44,202.43,0.063]
[1738820486144,0.99991323,202.44,202.43,0.063]
[1738820488554,10.37111782,202.44,202.43,0.063]
[1738820489484,0.99991323,202.44,202.43,0.063]
[1738820489964,10.37111782,202.44,202.43,0.063]
[1738820493445,0.99991323,202.44,202.43,0.063]
[1738820494572,15.31081782,202.44,202.43,0.063]
[1738820496965,5.94031323,202.41,202.4,0.063]
[1738820497268,15.31151782,202.41,202.4,0.063]
[1738820502371,28.72336635,202.41,202.4,0.063]
[1738820505780,0.99991323,202.34,202.32,9.43420459]
[1738820505978,0.99991323,202.34,202.32,0.063]
[1738820508860,0.99991323,202.34,202.32,9.43420459]
[1738820509579,0.99991323,202.34,202.32,0.063]
[1738820511585,0.99991323,202.34,202.32,9.43420459]
[1738820512089,24.21056993,202.56,202.32,9.43420459]
[1738820512090,0.99991323,202.38,202.33,9.73242149]
[1738820512252,0.99991323,202.38,202.37,9.37120459]
[1738820513586,0.99991323,202.4,202.37,9.37120459]
[1738820513883,0.99991323,202.4,202.39,9.37120459]
[1738820514581,0.99991323,202.4,202.38,9.37120459]
[1738820515986,0.99991323,202.4,202.37,9.37120459]
[1738820516685,4.22,202.45,202.36,9.37120459]
[1738820516686,0.99991323,202.38,202.36,9.37120459]
[1738820516884,0.99991323,202.36,202.35,9.37120459]
[1738820517065,0.99991323,202.36,202.34,9.37120459]
[1738820519292,0.99991323,202.36,202.35,9.37120459]
[1738820519796,0.99991323,202.41,202.35,9.73204504]
[1738820520102,0.99991323,202.39,202.37,9.37120459]
[1738820520598,0.99991323,202.39,202.36,9.37120459]
[1738820520997,0.49991323,202.39,202.36,9.37120459]
[1738820521803,0.03,202.4,202.37,9.37120459]
[1738820521978,0.03,202.4,202.38,9.37120459]
[1738820523164,0.03,202.4,202.39,9.37120459]
[1738820524694,0.03,202.4,202.39,9.73156724]
[1738820525693,0.03,202.4,202.39,9.37120459]
[1738820525911,0.03,202.4,202.39,9.98243185]
[1738820526207,0.03,202.4,202.39,16.59893185]
[1738820528889,0.03,202.4,202.39,30.26176038]
[1738820530473,0.03,202.4,202.39,164.86176038]
[1738820530673,0.03,202.4,202.39,169.44241312]
[1738820532006,0.03,202.48,202.43,0.37647]
[1738820532179,0.03,202.48,202.44,9.37120459]
[1738820532504,0.03,202.48,202.45,9.73085996]
[1738820533816,0.03,202.48,202.46,4.9392]
[1738820535302,0.03,202.48,202.46,14.31040459]
[1738820535480,0.03,202.48,202.46,14.66991094]
[1738820538006,0.03,202.48,202.46,14.31040459]
[1738820539108,0.03,202.48,202.47,5.54952233]
[1738820541321,0.03,202.48,202.47,14.92072692]
[1738820541908,0.03,202.48,202.47,15.04621692]
[1738820542105,0.49991323,202.57,202.47,170.29425545]
[1738820542307,0.49991323,202.55,202.51,9.62218459]
[1738820542506,0.49991323,202.55,202.51,9.98132595]
[1738820543608,9.37120459,202.59,202.52,14.30890459]
[1738820543609,0.49991323,202.57,202.52,14.30890459]
[1738820543828,0.49991323,202.59,202.55,9.37120459]
[1738820543998,0.49991323,202.59,202.56,0.35872993]
[1738820545506,0.52991323,202.61,202.56,0.35872993]
[1738820545706,0.49991323,202.59,202.56,0.35872993]
[1738820546030,0.49991323,202.59,202.56,9.72993452]
[1738820546920,0.52991323,202.61,202.56,0.35872993]
[1738820547291,0.03,202.61,202.57,9.37120459]
[1738820547501,0.03,202.61,202.59,9.37120459]
[1738820547704,0.03,202.61,202.6,10.23145575]
[1738820547993,0.03,202.61,202.6,158.24330428]
[1738820548202,0.03,202.61,202.6,143.97120459]
[1738820549222,0.03,202.61,202.6,162.82081312]
[1738820549716,0.03,202.61,202.6,200.30563148]
[1738820549900,0.03,202.61,202.6,201.55725148]
[1738820550312,0.03,202.61,202.6,202.30831825]
[1738820550621,0.03,202.61,202.6,164.07243312]
[1738820550817,0.03,202.61,202.6,164.32341312]
[1738820551024,0.03,202.61,202.6,202.30831825]
[1738820551500,0.03,202.61,202.6,164.32341312]
[1738820552309,0.03,202.61,202.6,201.80823148]
[1738820552617,0.03,202.61,202.6,150.40960459]
[1738820552822,0.03,202.61,202.6,145.47380459]
[1738820553223,0.03,202.61,202.6,150.66058459]
[1738820553625,0.03,202.61,202.6,150.40960459]
[1738820554128,0.03,202.61,202.59,9.37120459]
[1738820554316,0.03,202.61,202.56,9.72966821]
[1738820554702,0.03,202.61,202.57,9.37120459]
[1738820554910,0.03,202.61,202.58,0.35842901]
[1738820555119,0.03,202.61,202.56,0.35845672]
[1738820555421,0.49991323,202.6,202.56,0.35845672]
[1738820555807,0.49991323,202.58,202.54,29.37120459]
[1738820556014,0.52991323,202.61,202.56,9.37120459]
[1738820556334,0.03,202.61,202.57,0.35848827]
[1738820556524,0.49991323,202.6,202.55,9.72969917]
[1738820556704,9.87111782,202.6,202.55,0.35849458]
[1738820556899,0.49991323,202.58,202.52,9.73003414]
[1738820558907,0.49991323,202.58,202.54,9.37120459]
[1738820559107,0.49991323,202.6,202.54,9.37120459]
[1738820559306,0.49991323,202.6,202.55,0.35866391]
[1738820561234,9.87111782,202.6,202.53,5.29615384]
[1738820561440,9.37120459,202.59,202.53,5.29615384]
[1738820561625,9.87111782,202.6,202.53,5.29615384]
[1738820562035,0.49991323,202.58,202.53,0.35875384]
[1738820563214,9.87111782,202.6,202.53,0.35875384]
[1738820563418,0.49991323,202.6,202.53,14.66735843]
[1738820564138,0.49991323,202.6,202.54,9.37120459]
[1738820564340,9.40120459,202.61,202.55,0.35853497]
[1738820564545,0.03,202.61,202.56,9.37120459]
[1738820564827,0.03,202.61,202.57,0.35839767]
[1738820566029,0.03,202.61,202.58,9.37120459]
[1738820566235,0.03,202.61,202.59,9.72940415]
[1738820566737,0.03,202.61,202.59,0.35819956]
[1738820568041,0.03,202.61,202.6,0.35826646]
[1738820568333,0.03,202.61,202.58,0.35826632]
[1738820569328,9.90111782,202.61,202.57,0.35840515]
[1738820569512,9.37120459,202.59,202.56,134.6]
[1738820569835,9.37120459,202.59,202.55,20.0]
[1738820570226,0.49991323,202.59,202.55,20.0]
[1738820570842,0.49991323,202.59,202.55,20.35864002]
[1738820572041,0.49991323,202.59,202.55,0.35864002]
[1738820572342,9.87111782,202.59,202.55,0.35864002]
[1738820572539,9.87111782,202.59,202.54,4.9371]
[1738820572835,0.49991323,202.57,202.53,0.35868371]
[1738820573218,9.87111782,202.57,202.52,5.29635342]
[1738820573530,9.87111782,202.57,202.52,0.35885342]
[1738820574540,0.49991323,202.57,202.52,0.35885342]
[1738820574738,0.49991323,202.55,202.52,0.35885342]
[1738820575113,0.49991323,202.55,202.51,0.35906591]
[1738820576035,0.49991323,202.55,202.51,9.7302705]
[1738820576215,0.49991323,202.55,202.51,0.35906591]
[1738820577746,0.49991323,202.58,202.53,9.37120459]
[1738820577931,0.49991323,202.58,202.54,0.35875755]
[1738820578327,0.49991323,202.56,202.54,0.35875755]
[1738820578531,0.49991323,202.58,202.52,5.29656304]
[1738820579038,0.49991323,202.56,202.52,0.35886304]
[1738820580157,9.87111782,202.59,202.52,0.35886304]
[1738820580322,0.49991323,202.56,202.52,5.29636304]
[1738820580641,0.49991323,202.58,202.52,0.35886304]
[1738820580843,0.49991323,202.56,202.52,0.35886304]
[1738820582246,11.49791782,202.6,202.53,5.18838]
[1738820582427,0.49991323,202.58,202.54,0.35868929]
[1738820583346,11.49791782,202.6,202.54,0.35868929]
[1738820583743,0.49991323,202.58,202.54,0.35868929]
[1738820585235,0.49991323,202.58,202.52,0.35889341]
[1738820585543,6.5626,202.6,202.52,0.35889341]
[1738820585544,0.49991323,202.56,202.52,0.35889341]
[1738820585739,9.87111782,202.56,202.52,0.35889341]
[1738820585943,0.49991323,202.56,202.52,0.35889341]
[1738820586949,0.49991323,202.53,202.48,14.37270459]
[1738820587147,0.49991323,202.53,202.49,0.35916187]
[1738820592135,0.49991323,202.51,202.48,0.063]
[1738820593249,9.87111782,202.49,202.48,0.063]
[1738820593554,14.80961782,202.49,202.48,0.063]
[1738820597561,15.73581241,202.49,202.48,0.063]
[1738820597948,28.08201241,202.49,202.4,0.063]
[1738820598148,9.87111782,202.41,202.4,0.063]
[1738820601034,0.49991323,202.41,202.4,0.063]
[1738820601381,0.49991323,202.43,202.4,0.063]
[1738820602561,0.49991323,202.41,202.4,0.063]
[1738820605073,9.87111782,202.41,202.4,0.063]
[1738820607687,16.07461782,202.41,202.4,0.063]
[1738820608877,9.87111782,202.41,202.4,0.063]
[1738820618779,14.81151782,202.41,202.4,0.063]
[1738820623407,9.87111782,202.41,202.4,0.063]
[1738820624302,14.81151782,202.41,202.4,0.063]
[1738820627083,14.93700782,202.41,202.4,0.063]
[1738820627393,28.47434635,202.41,202.4,0.063]
[1738820628396,14.16274176,202.39,202.38,0.063]
[1738820628604,23.53394635,202.39,202.38,0.063]
[1738820629105,28.47484635,202.39,202.38,0.063]
[1738820630385,14.81201782,202.39,202.38,0.063]
[1738820632421,0.49991323,202.39,202.38,0.063]
[1738820637786,9.87111782,202.39,202.38,0.063]
[1738820638413,0.49991323,202.39,202.38,0.063]
[1738820639121,9.87111782,202.39,202.38,0.063]
[1738820641611,0.49991323,202.39,202.38,0.063]
[1738820644313,23.53394635,202.39,202.38,0.063]
[1738820647201,9.99660782,202.39,202.38,0.063]
[1738820647601,0.49991323,202.39,202.38,0.063]
[1738820649422,9.87111782,202.39,202.38,0.063]
[1738820650422,9.99660782,202.39,202.38,0.063]
[1738820652031,14.93750782,202.39,202.38,0.063]
[1738820652704,14.81201782,202.39,202.38,0.063]
[1738820652906,0.03,202.41,202.38,9.43420459]
[1738820653215,0.03,202.41,202.39,9.37120459]
[1738820653533,0.49991323,202.4,202.38,9.43420459]
[1738820654115,0.03,202.41,202.39,9.37120459]
[1738820655022,0.03,202.4,202.39,9.37120459]
[1738820660433,0.03,202.4,202.38,16.71318311]
[1738820660935,0.03,202.4,202.39,9.37120459]
[1738820661232,0.03,202.4,202.39,14.31210459]
[1738820666734,0.03,202.4,202.39,14.37510459]
[1738820672935,0.03,202.4,202.39,5.0039]
[1738820673844,0.03,202.4,202.39,0.063]
[1738820674038,0.03,202.4,202.39,5.0039]
[1738820674824,0.03,202.4,202.39,14.37510459]
[1738820677125,0.03,202.4,202.39,514.37510459]
[1738820679654,0.03,202.4,202.39,514.50059459]
[1738820679947,0.03,202.4,202.39,528.03793312]
[1738820681059,0.03,202.4,202.39,514.37510459]
[1738820682648,0.03,202.4,202.39,500.063]
[1738820689555,0.03,202.4,202.39,509.43420459]
[1738820690049,0.03,202.4,202.39,500.063]
[1738820692352,0.03,202.4,202.39,509.43420459]
[1738820692558,0.03,202.4,202.39,514.37510459]
[1738820693554,0.03,202.4,202.39,514.50059459]
[1738820694146,0.03,202.4,202.39,509.43420459]
[1738820695374,0.03,202.4,202.39,514.50059459]
[1738820696683,0.03,202.4,202.39,500.063]
[1738820702277,0.03,202.4,202.39,509.43420459]
[1738820702487,0.03,202.4,202.39,514.37510459]
[1738820703977,0.03,202.4,202.39,528.03793312]
[1738820704151,0.03,202.4,202.39,528.28891312]
[1738820705057,0.03,202.4,202.39,514.50059459]
[1738820707850,0.03,202.4,202.39,528.16342312]
[1738820708560,0.03,202.4,202.39,528.28891312]
[1738820709859,0.03,202.48,202.4,13.91380853]
[1738820710065,0.03,202.48,202.47,9.49669459]
[1738820711775,0.03,202.48,202.47,14.43569459]
[1738820712873,0.03,202.48,202.47,163.18340199]
[1738820713083,0.03,202.48,202.47,163.82401312]
[1738820713276,0.03,202.48,202.47,162.82401312]
[1738820713456,0.03,202.48,202.47,144.09669459]
[1738820714862,0.03,202.48,202.47,157.88501312]
[1738820717286,0.03,202.48,202.47,144.09669459]
[1738820717497,0.03,202.48,202.47,9.49669459]
[1738820717673,0.03,202.48,202.47,9.85613001]
[1738820718191,0.03,202.48,202.47,23.64444854]
[1738820719369,0.03,202.48,202.47,158.24444854]
[1738820719567,0.03,202.48,202.47,157.88501312]
[1738820726481,0.03,202.48,202.47,158.88501312]
[1738820728070,0.0001,202.48,202.47,158.88501312]
[1738820729500,0.0001,202.48,202.47,240.88501312]
[1738820730484,0.0001,202.48,202.47,246.51455857]
[1738820731717,0.0001,202.48,202.47,240.88501312]
[1738820733406,0.0001,202.48,202.47,246.51455857]
[1738820735282,0.0001,202.48,202.47,247.01464534]
[1738820736382,0.03,202.58,202.52,0.50196]
[1738820736582,0.03,202.58,202.56,0.12549]
[1738820736782,0.03,202.58,202.56,0.4841636]
[1738820741210,0.49991323,202.57,202.55,0.35867888]
[1738820741514,0.49991323,202.57,202.56,20.0]
[1738820742006,0.03,202.58,202.56,20.0]
[1738820742686,0.49991323,202.57,202.56,20.0]
[1738820750713,0.49991323,202.55,202.52,14.30870459]
[1738820750894,0.49991323,202.55,202.52,9.37120459]
[1738820751093,0.49991323,202.55,202.54,20.0]
[1738820754117,0.49991323,202.55,202.52,9.37120459]
[1738820754295,0.49991323,202.55,202.52,14.30890459]
[1738820755111,0.49991323,202.55,202.52,4.9377]
[1738820755408,0.49991323,202.55,202.52,14.30890459]
[1738820755627,0.49991323,202.57,202.53,9.73019102]
[1738820755825,0.49991323,202.57,202.54,0.12549]
[1738820756523,0.49991323,202.57,202.54,5.06249]
[1738820756919,0.49991323,202.57,202.54,14.43369459]
[1738820758293,0.03,202.58,202.56,0.12549]
[1738820758502,0.49991323,202.57,202.55,9.37120459]
[1738820758693,0.49991323,202.55,202.53,20.0]
[1738820759415,0.49991323,202.57,202.53,34.66756447]
[1738820760123,0.49991323,202.57,202.54,9.49669459]
[1738820760299,0.03,202.58,202.55,5.29584175]
[1738820761910,0.49991323,202.54,202.5,9.37120459]
[1738820762109,0.49991323,202.52,202.5,9.37120459]
[1738820762404,0.49991323,202.54,202.51,0.12549]
[1738820762610,0.49991323,202.56,202.51,0.12549]
[1738820763216,0.49991323,202.54,202.51,9.49669459]
[1738820763420,0.49991323,202.52,202.51,20.0]
[1738820764827,0.49991323,202.54,202.51,20.0]
[1738820765014,0.49991323,202.56,202.51,29.37120459]
[1738820765214,0.49991323,202.56,202.51,34.30910459]
[1738820767128,0.49991323,202.54,202.51,34.30910459]
[1738820767429,0.49991323,202.54,202.51,24.9379]
[1738820768729,0.49991323,202.52,202.51,20.0]
[1738820769119,0.49991323,202.52,202.49,14.30950459]
[1738820770020,0.49991323,202.5,202.48,0.063]
[1738820770634,9.87111782,202.5,202.48,0.063]
[1738820770831,14.80941782,202.5,202.48,0.063]
[1738820773324,5.43821323,202.5,202.48,0.063]
[1738820774425,0.49991323,202.5,202.48,0.063]
[1738820776045,0.49991323,202.5,202.48,9.43420459]
[1738820776742,0.49991323,202.5,202.48,0.063]
[1738820777344,0.49991323,202.5,202.48,9.43420459]
[1738820777524,0.49991323,202.5,202.49,9.37120459]
[1738820778850,0.49991323,202.52,202.49,9.37120459]
[1738820779050,0.49991323,202.52,202.51,9.37120459]
[1738820779353,0.49991323,202.52,202.5,9.37120459]
[1738820781463,0.49991323,202.52,202.49,9.37120459]
[1738820782733,0.49991323,202.5,202.49,9.37120459]
[1738820785537,0.49991323,202.52,202.49,9.37120459]
[1738820785856,0.49991323,202.52,202.5,9.37120459]
[1738820787750,0.52991323,202.52,202.5,9.37120459]
[1738820790360,0.49991323,202.49,202.48,20.063]
[1738820790655,0.49991323,202.49,202.48,0.063]
[1738820799036,0.49991323,202.49,202.48,9.43420459]
[1738820799235,0.49991323,202.51,202.48,9.43420459]
[1738820799457,0.49991323,202.51,202.5,29.37120459]
[1738820800063,0.49991323,202.51,202.5,20.0]
[1738820800461,0.49991323,202.51,202.49,9.37120459]
[1738820803341,0.49991323,202.51,202.5,9.37120459]
[1738820806276,0.49991323,202.51,202.5,29.37120459]
[1738820807770,0.03,202.52,202.5,34.30940459]
[1738820807954,0.03,202.52,202.51,9.85585013]
[1738820808981,0.03,202.52,202.51,14.79385013]
[1738820811461,0.03,202.52,202.51,14.30920459]
[1738820812782,0.03,202.52,202.51,4.938]
[1738820813072,0.49991323,202.51,202.49,14.30950459]
[1738820813280,0.49991323,202.51,202.49,9.37120459]
[1738820817082,0.49991323,202.51,202.5,9.37120459]
[1738820818491,0.49991323,202.51,202.5,14.30940459]
[1738820819900,0.03,202.52,202.5,14.43489459]
[1738820820181,0.49991323,202.51,202.5,14.30940459]
[1738820820580,0.03,202.52,202.5,9.37120459]
[1738820820778,0.49991323,202.51,202.5,9.37120459]
[1738820820995,0.49991323,202.51,202.5,14.30940459]
[1738820822384,0.49991323,202.51,202.5,9.37120459]
[1738820824886,0.49991323,202.51,202.48,9.43420459]
[1738820825187,0.49991323,202.51,202.48,14.37290459]
[1738820825486,0.49991323,202.49,202.48,14.37290459]
[1738820826705,0.49991323,202.51,202.48,14.37290459]
[1738820827388,0.49991323,202.49,202.48,14.37290459]
[1738820827997,0.49991323,202.49,202.48,9.43420459]
[1738820828503,0.49991323,202.49,202.48,0.063]
[1738820835793,14.80961782,202.49,202.48,0.063]
[1738820841014,0.49991323,202.49,202.48,0.063]
[1738820841380,0.49991323,202.49,202.48,9.43420459]
[1738820841579,0.49991323,202.49,202.48,0.063]
[1738820846108,5.43841323,202.49,202.48,0.063]
[1738820846914,14.80961782,202.49,202.48,0.063]
[1738820847305,14.83961782,202.49,202.48,0.063]
[1738820848913,5.46841323,202.49,202.48,0.063]
[1738820849421,0.52991323,202.49,202.48,0.063]
[1738820851821,33.14120459,202.52,202.48,0.063]
[1738820852895,4.9382,202.51,202.48,0.063]
[1738820854122,9.37120459,202.5,202.48,0.063]
[1738820855517,4.9385,202.49,202.48,0.063]
[1738820859996,14.30970459,202.49,202.48,0.063]
[1738820861527,14.43519459,202.49,202.48,0.063]
[1738820861702,15.36141135,202.49,202.48,0.063]
[1738820862398,29.89865047,202.49,202.48,0.063]
[1738820863607,28.89874988,202.49,202.48,0.063]
[1738820863928,30.10643317,202.49,202.48,0.063]
[1738820864305,29.02423988,202.49,202.48,0.063]
[1738820864503,28.89874988,202.49,202.48,0.063]
[1738820865111,15.36141135,202.49,202.48,0.063]
[1738820865417,28.89874988,202.49,202.48,0.063]
[1738820865727,14.43519459,202.49,202.48,0.063]
[1738820867317,15.36146247,202.49,202.48,0.063]
[1738820869627,15.23597247,202.49,202.48,0.063]
[1738820869830,14.30970459,202.49,202.48,0.063]
[1738820870635,4.9385,202.49,202.48,0.063]
[1738820871037,8.6785,202.49,202.48,0.063]
[1738820871342,18.04970459,202.49,202.48,0.063]
[1738820872611,8.6785,202.49,202.48,0.063]
[1738820873311,4.9385,202.49,202.48,0.063]
[1738820876938,8.6582,202.5,202.48,0.063]
[1738820878027,18.02940459,202.5,202.48,0.063]
[1738820880443,9.37120459,202.49,202.48,0.063]
[1738820881443,14.30970459,202.49,202.48,0.063]
[1738820882547,29.89873743,202.49,202.48,0.063]
[1738820884923,28.89873743,202.49,202.48,0.063]
[1738820885650,19.0813989,202.49,202.48,0.063]
[1738820887439,33.61873743,202.49,202.48,0.063]
[1738820889750,33.74422743,202.49,202.48,0.063]
[1738820892855,116.14422743,202.49,202.48,0.063]
[1738820893034,115.21802312,202.49,202.48,0.063]
[1738820899855,18.60152853,202.48,202.47,0.063]
[1738820900057,28.89909124,202.48,202.47,0.063]
[1738820908259,0.12549,202.46,202.41,0.063]
[1738820908463,9.37120459,202.45,202.41,0.063]
[1738820909459,4.9397,202.44,202.41,0.063]
[1738820909661,9.37120459,202.42,202.41,0.063]
[1738820910965,14.31140459,202.42,202.41,0.063]
[1738820913870,4.9402,202.42,202.41,0.063]
[1738820914061,28.97423312,202.42,202.41,0.063]
[1738820914260,29.09972312,202.42,202.41,0.063]
[1738820914459,30.02623858,202.42,202.41,0.063]
[1738820914867,44.78831853,202.4,202.39,483.18297804]
[1738820915054,54.15952312,202.4,202.39,483.18297804]
[1738820915258,54.15952312,202.4,202.39,466.11185086]
[1738820915649,54.15952312,202.4,202.39,453.11115166]
[1738820915961,59.10022312,202.4,202.39,308.61692456]
[1738820916155,60.10012371,202.4,202.39,304.89146506]
[1738820916873,60.10012371,202.4,202.39,278.84566506]
[1738820917075,60.10012371,202.4,202.39,248.49986506]
[1738820917253,60.10012371,202.4,202.39,222.49626506]
[1738820917453,61.33343588,202.4,202.39,187.25038506]
[1738820917668,61.33343588,202.4,202.39,156.74318506]
[1738820917863,61.33343588,202.4,202.39,129.00818506]
[1738820918189,13.66282853,202.39,202.38,8.185e-05]
[1738820918347,0.12549,202.32,202.31,0.043]
[1738820918543,0.12549,202.32,202.28,0.063]
[1738820918544,44.41184853,202.31,202.28,0.063]
[1738820918763,3.72,202.32,202.28,0.063]
[1738820919183,8.6626,202.32,202.28,0.063]
[1738820919363,0.12549,202.31,202.28,0.063]
[1738820920171,8.6626,202.32,202.28,0.063]
[1738820921868,18.03380459,202.32,202.28,0.063]
[1738820922246,18.96082747,202.32,202.28,0.063]
[1738820924075,9.37120459,202.31,202.28,0.063]
[1738820924277,14.31430459,202.31,202.28,0.063]
[1738820925272,4.9424,202.33,202.28,0.063]
[1738820925855,13.11120459,202.34,202.28,0.063]
[1738820926255,96.71320459,202.35,202.28,15.97360459]
[1738820926463,87.3419,202.35,202.29,9.37120459]
[1738820928273,96.71310459,202.35,202.28,15.97360459]
[1738820930890,82.4,202.35,202.29,9.37120459]
[1738820931088,82.4,202.35,202.3,9.37120459]
[1738820931285,82.4,202.35,202.28,6.6024]
[1738820931286,4.9413,202.38,202.32,9.37120459]
[1738820933762,14.31250459,202.38,202.31,9.37120459]
[1738820933962,9.37120459,202.37,202.29,9.37120459]
[1738820934275,9.37120459,202.35,202.28,15.97360459]
[1738820935291,4.9421,202.34,202.28,15.97360459]
[1738820935988,14.31330459,202.34,202.28,6.6024]
[1738820936585,9.37120459,202.33,202.28,6.6024]
[1738820937275,4.9426,202.32,202.28,6.6024]
[1738820938088,14.31380459,202.32,202.28,6.6024]
[1738820940773,9.37120459,202.29,202.28,0.063]
[1738820941797,14.31450459,202.29,202.28,0.063]
[1738820945476,14.43999459,202.29,202.28,0.063]
[1738820946182,15.3671461,202.29,202.28,0.063]
[1738820947575,19.1071461,202.29,202.28,0.063]
[1738820948100,18.05450459,202.29,202.28,0.063]
[1738820949498,19.10710535,202.29,202.28,0.063]
[1738820950186,1.25098,202.27,202.26,0.063]
[1738820950379,24.96134161,202.27,202.26,0.063]
[1738820951575,13.78831853,202.24,202.22,0.063]
[1738820951775,10.42412801,202.23,202.22,0.063]
[1738820953097,15.36892801,202.23,202.22,0.063]
[1738820954606,29.03175654,202.23,202.22,0.063]
[1738820954985,30.03175654,202.23,202.22,0.063]
[1738820961209,29.10432312,202.23,202.22,0.063]
[1738820961504,30.03190212,202.23,202.22,0.063]
[1738820965798,23.03403312,202.21,202.2,0.063]
[1738820965999,23.9616312,202.21,202.2,0.063]
[1738820966925,28.9069312,202.21,202.2,0.063]
[1738820972797,29.0324212,202.21,202.2,0.063]
[1738820973315,30.0324212,202.21,202.2,0.063]
[1738820976911,16.24410267,202.21,202.2,0.063]
[1738820977100,0.03,202.22,202.2,0.063]
[1738820977417,0.03,202.22,202.21,9.37120459]
[1738820977810,0.03,202.22,202.2,8.0561]
[1738820978008,4.9752,202.22,202.2,8.0561]
[1738820978822,4.9752,202.22,202.2,0.063]
[1738820981934,87.3752,202.22,202.2,0.063]
[1738820982993,96.74640459,202.22,202.2,0.063]
[1738820983199,0.92743787,202.21,202.2,0.063]
[1738820983827,10.42413246,202.21,202.2,0.063]
[1738820984119,24.08696099,202.21,202.2,0.063]
[1738820984326,10.42413246,202.21,202.2,0.063]
[1738820986626,15.36943246,202.21,202.2,0.063]
[1738820987525,5.99822787,202.21,202.2,0.063]
[1738820988117,15.36943246,202.21,202.2,0.063]
[1738820989259,28.90677099,202.21,202.2,0.063]
[1738820990406,58.90677099,202.21,202.2,0.063]
[1738820992045,4.9453,202.21,202.2,0.063]
[1738820992252,0.03,202.22,202.2,9.43420459]
[1738820992543,0.03,202.22,202.21,9.37120459]
[1738820998059,0.03,202.22,202.2,0.063]
[1738821000765,0.03,202.22,202.07,6.1245116]
[1738821000766,0.25098,202.14,202.07,6.1245116]
[1738821000934,0.25098,202.12,202.07,6.1245116]
[1738821001134,10.29913342,202.11,202.07,6.1245116]
[1738821001343,29.37120459,202.09,202.07,6.1245116]
[1738821001552,73.03403312,202.09,202.07,6.1245116]
[1738821001779,73.96224463,202.09,202.08,0.0001]
[1738821002754,15.66272912,202.08,202.07,0.0001]
[1738821003057,20.0,202.02,202.01,7.64618604]
[1738821003276,20.0,201.9,201.85,6.0615116]
[1738821003475,9.37120459,201.86,201.85,6.0615116]
[1738821003835,39.62218459,201.86,201.85,6.0615116]
[1738821004051,40.42587883,201.86,201.85,6.0615116]
[1738821004247,40.42587883,201.86,201.76,21.28438906]
[1738821004448,9.37120459,201.83,201.75,9.37120459]
[1738821004665,14.74015698,201.83,201.75,14.74015698]
[1738821004877,14.74015698,201.83,201.76,13.41184853]
[1738821005553,14.74015698,201.82,201.74,14.74015698]
[1738821005751,14.74015698,201.81,201.73,14.74015698]
[1738821006173,14.74015698,201.81,201.7,4.9577]
[1738821006174,14.74015698,201.81,201.74,14.74015698]
[1738821006547,10.25758636,201.8,201.74,14.74015698]
[1738821007450,0.25098,201.78,201.62,6.5755]
[1738821007644,14.74015698,201.72,201.64,14.74015698]
[1738821007844,14.74015698,201.72,201.62,6.5755]
[1738821007845,14.74015698,201.72,201.66,13.41184853]
[1738821008159,14.74015698,201.71,201.64,14.74015698]
[1738821008356,1.0,201.66,201.58,0.83617669]
[1738821008561,1.0,201.66,201.65,14.74015698]
[1738821008738,1.0,201.66,201.65,28.15200551]
[1738821008937,1.0,201.66,201.65,14.74015698]
[1738821009138,0.16382331,201.67,201.65,14.74015698]
[1738821009341,11.25758636,201.7,201.66,14.74015698]
[1738821009540,11.25758636,201.7,201.61,0.25098]
[1738821009541,11.25758636,201.7,201.69,14.74015698]
[1738821009758,1.0,201.7,201.69,14.74015698]
[1738821010342,1.0,201.7,201.6,12.4007]
[1738821010542,24.66159466,201.69,201.6,12.89305138]
[1738821010744,24.66159466,201.69,201.68,7.78e-06]
[1738821010946,5.2240036,201.68,201.6,14.74015698]
[1738821011162,3.6e-06,201.68,201.6,86.17891909]